fUST/lending_fUST_20240807
["ID","MTS","AMOUNT","RATE_DAILY","PERIOD"]
[334377663,1723005042353,-151.0,0.00017369,2]
[334377664,1723005042363,-295.395828,0.00017369,2]
[334377665,1723005042372,-295.395828,0.00017369,2]
[334377666,1723005042382,-151.0,0.00017369,2]
[334377667,1723005042391,-618.297099,0.00017369,2]
[334377668,1723005042401,-618.297099,0.00017369,2]
[334377669,1723005042411,-200.76402623,0.00017379,2]
[334377670,1723005042422,-165.59010032,0.00017403,2]
[334377671,1723005042432,-193.32291813,0.00017403,4]
[334377672,1723005042443,-180.53401892,0.00017882,2]
[334377673,1723005042454,-492.59464676,0.00018125,2]
[334377674,1723005042464,-189.82369411,0.00018125,2]
[334377675,1723005042474,-1335.86940117,0.0001904,2]
[334377676,1723005042484,-290.630166,0.00019054,2]
[334377677,1723005042493,-290.630166,0.00019054,2]
[334377678,1723005042502,-222.612632,0.00019054,2]
[334377679,1723005042512,-222.612632,0.00019054,2]
[334377680,1723005042521,-151.0,0.00019054,2]
[334377681,1723005042530,-151.0,0.00019054,2]
[334377682,1723005042540,-709.637477,0.00019054,2]
[334377683,1723005042550,-709.637477,0.00019054,2]
[334377684,1723005042559,-151.0,0.00019054,2]
[334377685,1723005042571,-152.702902,0.00019054,2]
[334377686,1723005042581,-151.0,0.00019054,2]
[334377687,1723005042591,-151.0,0.00019054,2]
[334377688,1723005042601,-1027.386209,0.00019054,2]
[334377689,1723005042611,-1027.386209,0.00019054,2]
[334377690,1723005042620,-151.0,0.00019054,2]
[334377691,1723005042629,-952.030441,0.00019054,2]
[334377692,1723005042638,-952.030441,0.00019054,2]
[334377693,1723005042648,-151.0,0.00019054,2]
[334377694,1723005042657,-195.56455,0.00019054,2]
[334377695,1723005042667,-195.56455,0.00019054,2]
[334377696,1723005042676,-172.879709,0.00019178,2]
[334377697,1723005042686,-174.267441,0.00019178,2]
[334377698,1723005042695,-2468.00101416,0.0001998,2]
[334377699,1723005042704,-213.417486,0.0001999,2]
[334377701,1723005042713,-151.0,0.0001999,2]
[334377703,1723005042722,-151.0,0.0001999,2]
[334377705,1723005042732,-290.630166,0.0001999,2]
[334377707,1723005042742,-290.630166,0.0001999,2]
[334377709,1723005042751,-222.612632,0.0001999,2]
[334377710,1723005042760,-222.612632,0.0001999,2]
[334377711,1723005042769,-151.0,0.0001999,2]
[334377712,1723005042778,-709.637477,0.0001999,2]
[334377714,1723005042787,-709.637477,0.0001999,2]
[334377716,1723005042797,-151.0,0.0001999,2]
[334377717,1723005042808,-151.0,0.0001999,2]
[334377718,1723005042820,-1027.386209,0.0001999,2]
[334377719,1723005042829,-1027.386209,0.0001999,2]
[334377720,1723005042839,-2468.00101416,0.0001999,2]
[334377721,1723005042848,-156.085025,0.0001999,2]
[334377722,1723005042858,-952.030441,0.0001999,2]
[334377723,1723005042868,-952.030441,0.0001999,2]
[334377725,1723005042878,-151.0,0.0001999,2]
[334377726,1723005042888,-195.56455,0.0001999,2]
[334377727,1723005042898,-195.56455,0.0001999,2]
[334377728,1723005042908,-156.40122441,0.0002,2]
[334377736,1723005043167,-294.18278188,0.0002,2]
[334377738,1723005043178,-1444.11606649,0.0002,2]
[334377740,1723005043189,-154.66746495,0.0002,2]
[334377742,1723005043199,-154.87081224,0.0002,2]
[334377744,1723005043209,-4182.56716442,0.0002,2]
[334377746,1723005043218,-1625.81763535,0.0002,2]
[334377748,1723005043228,-3951.4149627,0.0002,2]
[334377788,1723005043601,-1500.0,0.00015851,2]
[334377790,1723005043611,-2947.04579337,0.0002,2]
[334377792,1723005043620,-147.23052978,0.0002,2]
[334377797,1723005043654,-38.17486185,0.0002,2]
[334377834,1723005044247,273.37336231,9.9e-05,2]
[334377914,1723005052176,273.37336231,9.9e-05,2]
[334377916,1723005087590,189.82369411,0.00012,2]
[334377917,1723005090026,20765.79471201,0.00012,2]
[334377918,1723005093530,2752.78232891,0.00012,2]
[334377919,1723005096370,165.43605438,0.00012,2]
[334377920,1723005098477,180.53401892,0.00012,2]
[334377921,1723005100918,1500.0,0.00012,2]
[334377922,1723005127589,189.82369411,0.00012,2]
[334377923,1723005154096,20765.79471201,0.00012,2]
[334377924,1723005196003,180.63303627,9.999e-05,2]
[334377925,1723005248383,189.82369411,9.999e-05,2]
[334377926,1723005263583,-300.0,0.00014544,2]
[334377927,1723005263620,-11100.0,0.00014545,2]
[334377928,1723005268475,200.76402623,0.0001,2]
[334377929,1723005275544,35022.02035591,0.0001212,2]
[334377933,1723005289415,-3341.62918558,0.00014545,2]
[334377934,1723005289453,-200.18552419,0.00014545,2]
[334377935,1723005289489,-165.59010032,0.00014545,2]
[334377936,1723005289733,-180.53401892,0.00014545,2]
[334377937,1723005289774,-250.0,0.00014832,2]
[334377938,1723005289808,-250.0,0.00014873,2]
[334377939,1723005289847,-250.0,0.00014914,2]
[334377940,1723005289883,-250.0,0.00014954,2]
[334377941,1723005289917,-2312.16991033,0.00014976,2]
[334377942,1723005289952,-199.89126066,0.00014995,2]
[334377943,1723005290607,189.82369411,0.0001212,2]
[334377945,1723005414158,332.73756906,9.999e-05,2]
[334377946,1723005460467,-50.10873934,0.00014995,2]
[334377947,1723005460504,-300.0,0.00014999,2]
[334377948,1723005460560,-5236.61359711,0.00015,2]
[334377949,1723005460604,-2849.82693867,0.00015,2]
[334377950,1723005460646,-154.79042439,0.00015,2]
[334377951,1723005460691,-1109.20863131,0.00015,2]
[334377952,1723005460731,-838.62777096,0.00015,2]
[334377953,1723005460770,-193.32291813,0.00015,4]
[334377962,1723005977059,342.11743161,9.999e-05,2]
[334377964,1723006119192,207.787953,0.00027,120]
[334377966,1723006130764,24900.0,0.00013734,2]
[334377968,1723006158159,-306.4041273,0.00014038,2]
[334377969,1723006158183,-211.825178,0.00014247,2]
[334377970,1723006158207,-364.873435,0.00014247,2]
[334377971,1723006158232,-227.80762204,0.00014314,2]
[334378001,1723006232804,-22.19237796,0.00014314,2]
[334378002,1723006232813,-250.0,0.00014353,2]
[334378003,1723006232823,-250.0,0.00014392,2]
[334378004,1723006232832,-250.0,0.00014432,2]
[334378005,1723006232841,-250.0,0.00014471,2]
[334378006,1723006232850,-250.0,0.0001451,2]
[334378007,1723006232860,-250.0,0.00014549,2]
[334378008,1723006232869,-250.0,0.00014589,2]
[334378009,1723006232878,-250.0,0.00014628,2]
[334378010,1723006232887,-250.0,0.00014667,2]
[334378011,1723006232896,-1091.84231945,0.0001469,2]
[334378012,1723006232906,-269.76993169,0.0001469,2]
[334378013,1723006232916,-250.0,0.00014706,2]
[334378014,1723006232926,-250.0,0.00014746,2]
[334378015,1723006232935,-250.0,0.00014785,2]
[334378016,1723006232945,-250.0,0.00014824,2]
[334378017,1723006232954,-250.0,0.00014863,2]
[334378018,1723006232964,-250.0,0.00014903,2]
[334378019,1723006232973,-250.0,0.00014942,2]
[334378020,1723006232983,-250.0,0.00014981,2]
[334378021,1723006232992,-159.0,0.00014999,2]
[334378022,1723006233002,-5236.61359711,0.00015,2]
[334378023,1723006233011,-1109.20863131,0.00015,2]
[334378024,1723006233021,-1962.37926903,0.00015,2]
[334378025,1723006233030,-250.0,0.0001502,2]
[334378026,1723006233040,-250.0,0.0001506,2]
[334378027,1723006233055,-2123.85805989,0.00015708,2]
[334378028,1723006233064,-3087.63872233,0.00015708,2]
[334378029,1723006233074,-15665.41402068,0.00015709,2]
[334378041,1723006238681,-4076.45071744,0.00015709,2]
[334378042,1723006238737,-22612.5904908,0.00015709,2]
[334378043,1723006238747,-492.59464676,0.0001571,2]
[334378044,1723006238757,-277.26634811,0.000165,2]
[334378045,1723006238768,-269.93748278,0.00017,2]
[334378046,1723006238778,-150.112233,0.00017,2]
[334378047,1723006238788,-1428.59049032,0.00017867,2]
[334378048,1723006238804,-150.112233,0.000179,2]
[334378049,1723006238814,-524.3350632,0.00017964,2]
[334378050,1723006238824,-241.17280003,0.00017964,2]
[334378051,1723006238834,-500.0,0.00017964,2]
[334378052,1723006238843,-500.0,0.00017964,2]
[334378053,1723006238853,-310.27445996,0.00017964,2]
[334378054,1723006238862,-500.0,0.00017964,2]
[334378055,1723006238871,-500.0,0.00017964,2]
[334378056,1723006238881,-500.0,0.00017964,2]
[334378057,1723006238891,-500.0,0.00017964,2]
[334378058,1723006238902,-500.0,0.00017964,2]
[334378059,1723006238913,-500.0,0.00017964,2]
[334378060,1723006238923,-500.0,0.00017964,2]
[334378061,1723006238933,-500.0,0.00017964,2]
[334378062,1723006238943,-500.0,0.00017964,2]
[334378063,1723006238953,-500.0,0.00017964,2]
[334378064,1723006238963,-500.0,0.00017964,2]
[334378065,1723006238973,-209.22100926,0.00017964,2]
[334378066,1723006238983,-500.0,0.00017964,2]
[334378067,1723006238993,-500.0,0.00017964,2]
[334378068,1723006239003,-500.0,0.00017964,2]
[334378069,1723006239013,-59312.2697343,0.00017965,2]
[334378070,1723006239023,-59312.2697343,0.00017967,2]
[334378071,1723006239033,-59312.2697343,0.0001799,2]
[334378072,1723006239043,-163.525204,0.0001799,2]
[334378073,1723006239059,-13397.65004675,0.00017999,2]
[334378074,1723006239069,-3250.57284869,0.00018,2]
[334378075,1723006239079,-3250.57284866,0.00018,2]
[334378076,1723006239088,-3250.57284866,0.00018,2]
[334378077,1723006239098,-3250.57284866,0.00018,2]
[334378078,1723006239108,-2247.91623207,0.00018,2]
[334378079,1723006239117,-2247.91623204,0.00018,2]
[334378080,1723006239127,-2247.91623204,0.00018,2]
[334378081,1723006239137,-2247.91623204,0.00018,2]
[334378082,1723006239146,-213.417486,0.00018,2]
[334378083,1723006239156,-151.0,0.00018,2]
[334378084,1723006239166,-290.630166,0.00018,2]
[334378085,1723006239175,-290.630166,0.00018,2]
[334378086,1723006239185,-222.612632,0.00018,2]
[334378087,1723006239195,-222.612632,0.00018,2]
[334378088,1723006239208,-151.0,0.00018,2]
[334378089,1723006239218,-151.0,0.00018,2]
[334378090,1723006239227,-151.0,0.00018,2]
[334378091,1723006239237,-709.637477,0.00018,2]
[334378092,1723006239246,-709.637477,0.00018,2]
[334378093,1723006239256,-151.0,0.00018,2]
[334378094,1723006239265,-151.0,0.00018,2]
[334378095,1723006239275,-358.516393,0.00018,2]
[334378096,1723006239285,-358.516393,0.00018,2]
[334378097,1723006239294,-151.044215,0.00018,2]
[334378098,1723006239307,-151.0,0.00018,2]
[334378099,1723006239316,-151.009542,0.00018,2]
[334378100,1723006239325,-783.49757,0.00018,2]
[334378101,1723006239335,-783.49757,0.00018,2]
[334378102,1723006239345,-151.0,0.00018,2]
[334378103,1723006239355,-1027.386209,0.00018,2]
[334378104,1723006239364,-1138.107699,0.00018,2]
[334378105,1723006239373,-1027.386209,0.00018,2]
[334378106,1723006239382,-151.0,0.00018,2]
[334378107,1723006239392,-1138.107699,0.00018,2]
[334378108,1723006239401,-151.0,0.00018,2]
[334378109,1723006239410,-952.030441,0.00018,2]
[334378110,1723006239420,-195.56455,0.00018,2]
[334378111,1723006239430,-952.030441,0.00018,2]
[334378112,1723006239440,-195.56455,0.00018,2]
[334378113,1723006239450,-151.0,0.00018,2]
[334378114,1723006239460,-249.995343,0.00018,2]
[334378115,1723006239470,-249.995343,0.00018,2]
[334378116,1723006239480,-151.0,0.00018,2]
[334378117,1723006239490,-151.0,0.00018,2]
[334378118,1723006239501,-151.0,0.0001808,2]
[334378119,1723006239511,-151.0,0.0001808,2]
[334378120,1723006239520,-618.297099,0.0001808,2]
[334378121,1723006239530,-618.297099,0.0001808,2]
[334378122,1723006239539,-15865.47962594,0.00018182,2]
[334378123,1723006239552,-1428.59049028,0.00019076,2]
[334378124,1723006239561,-150.112233,0.000191,2]
[334378125,1723006239571,-173.573575,0.00019178,2]
[334378126,1723006239581,-59312.2697343,0.00019969,2]
[334378127,1723006239592,-59312.2697343,0.00019969,2]
[334378128,1723006239606,-151.0,0.00019979,2]
[334378129,1723006239616,-290.630166,0.00019979,2]
[334378130,1723006239625,-290.630166,0.00019979,2]
[334378131,1723006239636,-222.612632,0.00019979,2]
[334378132,1723006239646,-222.612632,0.00019979,2]
[334378133,1723006239655,-151.0,0.00019979,2]
[334378134,1723006239665,-151.0,0.00019979,2]
[334378135,1723006239676,-151.0,0.00019979,2]
[334378136,1723006239686,-151.0,0.00019979,2]
[334378137,1723006239696,-709.637477,0.00019979,2]
[334378138,1723006239706,-709.637477,0.00019979,2]
[334378139,1723006239715,-151.0,0.00019979,2]
[334378140,1723006239725,-152.702902,0.00019979,2]
[334378141,1723006239735,-358.516393,0.00019979,2]
[334378142,1723006239745,-358.516393,0.00019979,2]
[334378143,1723006239754,-358.516393,0.00019979,2]
[334378144,1723006239764,-358.516393,0.00019979,2]
[334378145,1723006239774,-151.0,0.00019979,2]
[334378146,1723006239784,-783.49757,0.00019979,2]
[334378147,1723006239798,-783.49757,0.00019979,2]
[334378148,1723006239807,-783.49757,0.00019979,2]
[334378149,1723006239816,-783.49757,0.00019979,2]
[334378150,1723006239826,-151.0,0.00019979,2]
[334378151,1723006239835,-151.0,0.00019979,2]
[334378152,1723006239845,-1027.386209,0.00019979,2]
[334378153,1723006239855,-1027.386209,0.00019979,2]
[334378154,1723006239865,-1138.107699,0.00019979,2]
[334378155,1723006239874,-1027.386209,0.00019979,2]
[334378156,1723006239884,-1027.386209,0.00019979,2]
[334378157,1723006239893,-1138.107699,0.00019979,2]
[334378158,1723006239903,-1138.107699,0.00019979,2]
[334378159,1723006239912,-1138.107699,0.00019979,2]
[334378160,1723006239922,-151.0,0.00019979,2]
[334378161,1723006239931,-156.085025,0.00019979,2]
[334378162,1723006239941,-952.030441,0.00019979,2]
[334378163,1723006239951,-195.56455,0.00019979,2]
[334378164,1723006239962,-952.030441,0.00019979,2]
[334378165,1723006239971,-195.56455,0.00019979,2]
[334378166,1723006239980,-952.030441,0.00019979,2]
[334378167,1723006239991,-195.56455,0.00019979,2]
[334378168,1723006240000,-952.030441,0.00019979,2]
[334378169,1723006240009,-151.0,0.00019979,2]
[334378170,1723006240019,-195.56455,0.00019979,2]
[334378171,1723006240028,-219.356226,0.00019979,2]
[334378172,1723006240038,-249.995343,0.00019979,2]
[334378173,1723006240048,-249.995343,0.00019979,2]
[334378174,1723006240057,-249.995343,0.00019979,2]
[334378175,1723006240067,-249.995343,0.00019979,2]
[334378176,1723006240077,-151.0,0.00019979,2]
[334378177,1723006240087,-151.0,0.00019979,2]
[334378178,1723006240096,-151.0,0.00019979,2]
[334378179,1723006240106,-151.0,0.00019979,2]
[334378180,1723006240115,-151.0,0.00019989,2]
[334378181,1723006240125,-295.395828,0.00019989,2]
[334378182,1723006240134,-295.395828,0.00019989,2]
[334378183,1723006240143,-151.0,0.0001999,2]
[334378184,1723006240153,-151.0,0.0001999,2]
[334378185,1723006240162,-295.395828,0.0001999,2]
[334378186,1723006240172,-151.0,0.0001999,2]
[334378187,1723006240181,-295.395828,0.0001999,2]
[334378188,1723006240191,-151.0,0.0001999,2]
[334378189,1723006240200,-618.297099,0.0001999,2]
[334378190,1723006240209,-618.297099,0.0001999,2]
[334378191,1723006240218,-59312.2697343,0.0001999,2]
[334378192,1723006240228,-249.59460837,0.0002,2]
[334378193,1723006240237,-157.54875141,0.0002,2]
[334378195,1723006240246,-428.25754053,0.0002,2]
[334378196,1723006240256,-154.96162509,0.0002,2]
[334378197,1723006240266,-1444.11606649,0.0002,2]
[334378199,1723006240275,-154.87081224,0.0002,2]
[334378200,1723006240284,-4182.56716442,0.0002,2]
[334378201,1723006240295,-154.68290005,0.0002,2]
[334378202,1723006240305,-6898.46075607,0.0002,2]
[334378203,1723006240315,-1626.30244547,0.0002,2]
[334378204,1723006240324,-294.18278188,0.0002,2]
[334378205,1723006240332,-156.40122441,0.0002,2]
[334378206,1723006240341,-151.0,0.0002,2]
[334378207,1723006240351,-290.630166,0.0002,2]
[334378208,1723006240360,-290.630166,0.0002,2]
[334378209,1723006240369,-579.466594,0.0002,2]
[334378210,1723006240378,-222.612632,0.0002,2]
[334378212,1723006240387,-222.612632,0.0002,2]
[334378214,1723006240397,-709.637477,0.0002,2]
[334378216,1723006240406,-709.637477,0.0002,2]
[334378218,1723006240416,-151.0,0.0002,2]
[334378220,1723006240426,-266.87350305,0.0002,2]
[334378222,1723006240436,-1428.59049028,0.00020285,2]
[334378224,1723006240445,-150.112233,0.000203,2]
[334378226,1723006240455,-364.873435,0.00020707,2]
[334378228,1723006240465,-151.0,0.00020707,2]
[334378230,1723006240475,-358.516393,0.00020707,2]
[334378232,1723006240485,-358.516393,0.00020707,2]
[334378234,1723006240495,-296.95255386,0.00021,2]
[334378236,1723006240504,-1428.59049028,0.00021493,2]
[334378238,1723006240514,-150.112233,0.000215,4]
[334378240,1723006240523,-154.68290005,0.00021642,2]
[334378242,1723006240532,-160.61263926,0.00022,2]
[334378244,1723006240542,-163.734844,0.00022,2]
[334378246,1723006240553,-264.46620809,0.00022,2]
[334378247,1723006240563,-2063.03559571,0.00022,2]
[334378248,1723006240582,-151.0,0.00022,7]
[334378249,1723006240597,-783.49757,0.00022,7]
[334378250,1723006240607,-783.49757,0.00022,7]
[334378251,1723006240616,-151.0,0.00022,7]
[334378252,1723006240626,-1027.386209,0.00022,7]
[334378253,1723006240637,-1027.386209,0.00022,7]
[334378254,1723006240646,-1138.107699,0.00022,7]
[334378255,1723006240656,-1138.107699,0.00022,7]
[334378256,1723006240666,-952.030441,0.00022,7]
[334378257,1723006240912,-195.56455,0.00022,7]
[334378258,1723006240956,-952.030441,0.00022,7]
[334378259,1723006240965,-195.56455,0.00022,7]
[334378260,1723006240974,-249.995343,0.00022,7]
[334378261,1723006240984,-249.995343,0.00022,7]
[334378262,1723006240994,-151.0,0.00022,7]
[334378263,1723006241003,-151.0,0.00022,7]
[334378264,1723006241012,-881.79875023,0.0002217,2]
[334378265,1723006241021,-618.297099,0.00022484,7]
[334378266,1723006241030,-618.297099,0.00022484,7]
[334378267,1723006241040,-150.112233,0.000227,5]
[334378268,1723006241050,-1428.59049028,0.00022702,2]
[334378269,1723006241060,-151.0,0.00022802,7]
[334378270,1723006241069,-290.630166,0.00022802,7]
[334378271,1723006241078,-290.630166,0.00022802,7]
[334378272,1723006241087,-579.466594,0.00022802,7]
[334378273,1723006241097,-222.612632,0.00022802,7]
[334378274,1723006241106,-222.612632,0.00022802,7]
[334378275,1723006241115,-151.0,0.00022802,7]
[334378276,1723006241125,-709.637477,0.00022802,7]
[334378277,1723006241134,-709.637477,0.00022802,7]
[334378278,1723006241143,-166.161363,0.00022802,7]
[334378279,1723006241152,-358.516393,0.00022802,7]
[334378280,1723006241162,-358.516393,0.00022802,7]
[334378281,1723006241171,-783.49757,0.00022802,7]
[334378282,1723006241180,-783.49757,0.00022802,7]
[334378283,1723006241190,-151.0,0.00022802,7]
[334378284,1723006241199,-1027.386209,0.00022802,7]
[334378285,1723006241209,-1027.386209,0.00022802,7]
[334378286,1723006241219,-1138.107699,0.00022802,7]
[334378287,1723006241228,-1138.107699,0.00022802,7]
[334378288,1723006241238,-952.030441,0.00022802,7]
[334378289,1723006241247,-195.56455,0.00022802,7]
[334378290,1723006241257,-952.030441,0.00022802,7]
[334378291,1723006241267,-195.56455,0.00022802,7]
[334378292,1723006241276,-249.995343,0.00022802,7]
[334378293,1723006241286,-249.995343,0.00022802,7]
[334378294,1723006241295,-151.0,0.00022802,7]
[334378295,1723006241306,-151.0,0.00022802,7]
[334378296,1723006241315,-151.0,0.00022812,7]
[334378297,1723006241325,-151.0,0.00022812,7]
[334378298,1723006241335,-151.0,0.00022812,7]
[334378299,1723006241345,-295.395828,0.00022812,7]
[334378300,1723006241355,-151.0,0.00022812,7]
[334378301,1723006241364,-295.395828,0.00022812,7]
[334378302,1723006241374,-151.0,0.00022812,7]
[334378303,1723006241383,-299.835624,0.00022822,7]
[334378304,1723006241392,-179.297359,0.00022822,7]
[334378305,1723006241402,-295.395828,0.00022822,7]
[334378306,1723006241411,-151.0,0.00022822,7]
[334378307,1723006241421,-295.395828,0.00022822,7]
[334378308,1723006241430,-151.0,0.00022822,7]
[334378309,1723006241440,-618.297099,0.00022822,7]
[334378310,1723006241450,-618.297099,0.00022822,7]
[334378311,1723006241460,-151.0,0.00022822,7]
[334378312,1723006241469,-290.630166,0.00022822,7]
[334378313,1723006241479,-290.630166,0.00022822,7]
[334378314,1723006241489,-579.466594,0.00022822,7]
[334378315,1723006241498,-222.612632,0.00022822,7]
[334378316,1723006241508,-222.612632,0.00022822,7]
[334378317,1723006241517,-224.216056,0.00022822,7]
[334378318,1723006241526,-709.637477,0.00022822,7]
[334378319,1723006241535,-709.637477,0.00022822,7]
[334378320,1723006241544,-358.516393,0.00022822,7]
[334378321,1723006241554,-358.516393,0.00022822,7]
[334378322,1723006241564,-783.49757,0.00022822,7]
[334378323,1723006241573,-783.49757,0.00022822,7]
[334378324,1723006241583,-1027.386209,0.00022822,7]
[334378325,1723006241593,-1027.386209,0.00022822,7]
[334378326,1723006241606,-1138.107699,0.00022822,7]
[334378327,1723006241616,-1138.107699,0.00022822,7]
[334378328,1723006241625,-952.030441,0.00022822,7]
[334378329,1723006241635,-195.56455,0.00022822,7]
[334378330,1723006241646,-952.030441,0.00022822,7]
[334378331,1723006241655,-195.56455,0.00022822,7]
[334378332,1723006241665,-249.995343,0.00022822,7]
[334378333,1723006241675,-249.995343,0.00022822,7]
[334378334,1723006241684,-151.0,0.00022822,7]
[334378335,1723006241694,-151.0,0.00022822,7]
[334378336,1723006241703,-20000.0,0.00022832,2]
[334378337,1723006241712,-152.25,0.000229,7]
[334378338,1723006241722,-245.66,0.000229,14]
[334378339,1723006241731,-3053.88,0.000229,14]
[334378340,1723006241741,-317.77530622,0.00023,2]
[334378341,1723006241750,-457.0,0.00023,2]
[334378342,1723006241760,-397.82,0.00023128,2]
[334378343,1723006241771,-457.0,0.00023288,2]
[334378344,1723006241781,-152.0,0.00023524,2]
[334378345,1723006241790,-457.0,0.00023562,2]
[334378346,1723006241800,-457.0,0.00023836,2]
[334378347,1723006241810,-150.112233,0.000239,4]
[334378348,1723006241819,-318.43218184,0.00024,2]
[334378349,1723006241829,-198.0,0.00024,2]
[334378350,1723006241838,-457.0,0.0002411,2]
[334378351,1723006241847,-457.0,0.00024164,2]
[334378352,1723006241856,-2023.14867149,0.000242,2]
[334378353,1723006241866,-380.0,0.00024658,2]
[334378354,1723006241875,-200.0,0.00024658,2]
[334378355,1723006241884,-1581.54451995,0.0002489,2]
[334378356,1723006241894,-295.395828,0.000249,7]
[334378357,1723006241903,-153.460435,0.000249,7]
[334378358,1723006241913,-295.395828,0.000249,7]
[334378359,1723006241922,-151.0,0.000249,7]
[334378360,1723006241931,-618.297099,0.000249,7]
[334378361,1723006241941,-618.297099,0.000249,7]
[334378362,1723006241950,-151.0,0.000249,7]
[334378363,1723006241959,-290.630166,0.000249,7]
[334378364,1723006241968,-290.630166,0.000249,7]
[334378365,1723006241977,-579.466594,0.000249,7]
[334378366,1723006241986,-222.612632,0.000249,7]
[334378367,1723006241996,-222.612632,0.000249,7]
[334378368,1723006242008,-709.637477,0.000249,7]
[334378369,1723006242018,-709.637477,0.000249,7]
[334378370,1723006242027,-358.516393,0.000249,7]
[334378371,1723006242037,-358.516393,0.000249,7]
[334378372,1723006242046,-783.49757,0.000249,7]
[334378373,1723006242063,-783.49757,0.000249,7]
[334378374,1723006242072,-1027.386209,0.000249,7]
[334378375,1723006242081,-1027.386209,0.000249,7]
[334378376,1723006242091,-1138.107699,0.000249,7]
[334378377,1723006242100,-1138.107699,0.000249,7]
[334378378,1723006242109,-952.030441,0.000249,7]
[334378379,1723006242118,-195.56455,0.000249,7]
[334378380,1723006242127,-952.030441,0.000249,7]
[334378381,1723006242137,-195.56455,0.000249,7]
[334378382,1723006242146,-249.995343,0.000249,7]
[334378383,1723006242155,-249.995343,0.000249,7]
[334378384,1723006242165,-151.0,0.000249,7]
[334378385,1723006242174,-151.0,0.000249,7]
[334378386,1723006242183,-151.0,0.0002499,7]
[334378387,1723006242193,-295.395828,0.0002499,7]
[334378388,1723006242202,-295.395828,0.0002499,7]
[334378389,1723006242211,-151.0,0.0002499,7]
[334378390,1723006242221,-618.297099,0.0002499,7]
[334378391,1723006242231,-618.297099,0.0002499,7]
[334378392,1723006242240,-152.990881,0.0002499,7]
[334378393,1723006242249,-290.630166,0.0002499,7]
[334378394,1723006242259,-290.630166,0.0002499,7]
[334378395,1723006242268,-579.466594,0.0002499,7]
[334378396,1723006242278,-222.612632,0.0002499,7]
[334378397,1723006242287,-222.612632,0.0002499,7]
[334378398,1723006242298,-709.637477,0.0002499,7]
[334378399,1723006242308,-709.637477,0.0002499,7]
[334378400,1723006242318,-358.516393,0.0002499,7]
[334378401,1723006242327,-358.516393,0.0002499,7]
[334378402,1723006242337,-783.49757,0.0002499,7]
[334378403,1723006242347,-783.49757,0.0002499,7]
[334378404,1723006242357,-1027.386209,0.0002499,7]
[334378405,1723006242366,-1027.386209,0.0002499,7]
[334378406,1723006242375,-1138.107699,0.0002499,7]
[334378407,1723006242384,-1138.107699,0.0002499,7]
[334378408,1723006242394,-952.030441,0.0002499,7]
[334378409,1723006242403,-195.56455,0.0002499,7]
[334378410,1723006242413,-952.030441,0.0002499,7]
[334378411,1723006242423,-195.56455,0.0002499,7]
[334378412,1723006242433,-249.995343,0.0002499,7]
[334378413,1723006242442,-249.995343,0.0002499,7]
[334378414,1723006242451,-174.803161,0.0002499,7]
[334378415,1723006242460,-275.67665146,0.00025,2]
[334378416,1723006242470,-1363.69574407,0.00025,2]
[334378417,1723006242482,-189.59399032,0.00025,2]
[334378418,1723006242492,-154.96683326,0.00025,2]
[334378419,1723006242502,-180.55208415,0.00025,2]